Cogmind - Beta 16 @@@ ROGUE MODE // 2025.10.26 @ 16:56:37 Player: GiggleBox Result: Destroyed by QX-OTD(R) with Subdweller Beam Cannon Performance ------------- Evolutions (0) 0 Regions Visited (3) 600 Robots Destroyed (32) 160 Value Destroyed (665) 665 Prototype IDs (3) 60 Alien Tech Used (0) 0 Bonus (0) 0 TOTAL SCORE: 1485 Bonus ------- None Cogmind --------- Core Integrity 0/250 Matter 300/300 Energy 145/170 System Corruption 0% Temperature Cool (9) Movement Walking (210) Ox1 Location -10/Subcaves Parts ------- > --- POWER (1) -------- Makeshift Power Source > --- PROPULSION (2) --- Makeshift Leg Makeshift Leg > --- UTILITY (2) ------ Heat Sink High-capacity Storage Unit > --- WEAPON (2) ------- Beam Rifle Beam Cannon > --- INVENTORY (20) --- Light Ion Engine Wheel High-capacity Battery (250) Makeshift Sensor Array Experimental Sensor Array Seismic Detector Improved Targeting Computer Medium Armor Plating Medium Armor Plating Medium Armor Plating Makeshift Light Armor Plating Scrap Shield Medium Laser Small Laser Beam Rifle Light Assault Rifle Grenade Launcher Subdweller Shrapnel Launcher Makeshift Hammer Peak State ------------ > --- POWER ------------ Makeshift Power Source > --- PROPULSION ------- Makeshift Leg Makeshift Leg > --- UTILITY ---------- High-capacity Storage Unit Seismic Detector > --- WEAPON ----------- Beam Rifle Beam Cannon > --- INVENTORY -------- Light Ion Engine Wheel Heat Sink High-capacity Battery Makeshift Sensor Array Experimental Sensor Array Improved Targeting Computer Medium Armor Plating Medium Armor Plating Medium Armor Plating Medium Armor Plating Makeshift Light Armor Plating Scrap Shield Medium Laser Small Laser Small Laser Beam Rifle Light Assault Rifle Grenade Launcher [Rating: 21] Favorites ----------- Power Ion Engine Engine Ion Engine Propulsion Light Treads Treads Light Treads Leg Makeshift Leg Wheel Wheel Utility Seismic Detector Device Seismic Detector Storage High-capacity Storage Unit Protection Medium Armor Plating Weapon Beam Rifle Energy Gun Beam Rifle Energy Cannon Beam Cannon Ballistic Gun Light Assault Rifle Build | -11 -10 -10 -10 ------- Run | Yrd Mat Min Sub Slots Evolved . | . . . . Power . | . . . . Propulsion . | . . . . Utility . | . . . . Weapon . | . . . . Parts Attached 25 | 9 10 . 6 Power 4 | 2 1 . 1 Engine 4 | 2 1 . 1 Core . | . . . . Reactor . | . . . . Propulsion 5 | 2 1 . 2 Treads 2 | 2 . . . Leg 2 | . . . 2 Wheel 1 | . 1 . . Hover . | . . . . Flight . | . . . . Utility 9 | 2 6 . 1 Device 4 | 1 2 . 1 Storage 4 | 1 3 . . Processor . | . . . . Hackware . | . . . . Protection 1 | . 1 . . Artifact . | . . . . Weapon 7 | 3 2 . 2 Energy Gun 5 | 2 2 . 1 Energy Cannon 1 | . . . 1 Ballistic Gun 1 | 1 . . . Ballistic Cannon . | . . . . Launcher . | . . . . Special Weapon . | . . . . Impact Weapon . | . . . . Slashing Weapon . | . . . . Piercing Weapon . | . . . . Special Melee Weapon . | . . . . Unidentified Prototypes . | . . . . Parts Lost 5 | . 1 . 4 Power 1 | . . . 1 Propulsion 2 | . 1 . 1 Utility . | . . . . Weapon 2 | . . . 2 Highest Loss Streak 4 | . 1 . 4 To Critical Strikes . | . . . . Average Backups 13 | 1 11 17 18 Power . | . 1 1 . Propulsion . | . . . . Utility 7 | . 5 8 10 Weapon 5 | . 4 7 7 Tool/Special . | . . . . Unused Backups 14 | . . . 14 Power . | . . . . Propulsion . | . . . . Utility 9 | . . . 9 Weapon 5 | . . . 5 Tool/Special . | . . . . Average Slot Usage (%) 99 | . 98 100 99 Engine 14 | . 14 14 14 Treads 15 | . 24 14 2 Leg 6 | . . . 21 Wheel 5 | . 2 14 3 Device 13 | . 13 14 14 Storage 14 | . 14 14 14 Energy Gun 22 | . 23 28 16 Energy Cannon 3 | . . . 11 Ballistic Gun 2 | . 4 . . Peak Build Rating 21 | 7 11 12 21 Average Rating 12 | 6 9 11 18 On Entrance 7 | . 7 11 12 Avg Prop Armor Cover (%) 12 | . 13 13 12 Naked Turns . | . . . . Heaviest Build 52 | 14 52 52 52 Greatest Support 40 | 40 40 10 40 Greatest Overweight (x) 5 | . 5 5 5 Average Overweight (x) 2 | . 1 5 1 Largest Inventory Capacity 20 | 8 20 20 20 Average Capacity 17 | 7 15 20 20 Most Carried 20 | 2 15 18 20 Average Carried 14 | 1 11 17 19 Final Capacity 20 | 8 20 20 20 Final Carried 20 | 2 15 18 20 Class Distribution -------------------- 77% | Mutant 22% | Scavenger-Mutant Dominant Class ---------------- Mutant | -10/Materials Mutant | -10/Mines Scavenger-Mutant | -10/Subcaves Resources | -11 -10 -10 -10 ----------- Run | Yrd Mat Min Sub Matter Collected 546 | 288 177 6 75 Remotely . | . . . . Salvage Created 1004 | 121 694 76 113 Parts 58 | 9 38 9 2 Haulers Intercepted 1 | . 1 . . Recyclers Shooed 1 | . 1 . . Parts Field Recycled . | . . . . Retrieved Matter . | . . . . Parts Self-Destructed 5 | . . . 5 Prevented . | . . . . Parts Restored . | . . . . Kills | -11 -10 -10 -10 ------- Run | Yrd Mat Min Sub Combat Hostiles Destroyed 24 | . 18 3 3 Guns 22 | . 18 3 1 Cannons 2 | . . . 2 Classes Destroyed 8 | 2 5 . 1 Worker 2 | . 1 1 . Tunneler 3 | 3 . . . Hauler 1 | . 1 . . Recycler 1 | 1 . . . Watcher 1 | . 1 . . Swarmer 9 | . 6 3 . Grunt 12 | . 12 . . Subdweller 3 | . . . 3 Best Kill Streak 4 | 3 4 2 1 Combat Bots Only 4 | . 4 2 1 Max Kills in Single Turn 2 | 1 2 1 1 Gunslinging 1 | . 1 . . Exploded . | . . . . Melee . | . . . . Uniques/NPCs Destroyed . | . . . . Combat | -11 -10 -10 -10 -------- Run | Yrd Mat Min Sub Hostile Shots Fired 125 | . 81 11 33 Missed 32 | . 23 3 6 Hits 93 | . 58 8 27 Projectile 93 | . 58 8 27 Critical Strikes 1 | . . . 1 Damage Taken 1272 | . 605 66 601 Core 257 | . 58 16 183 Absorbed by Shields . | . . . . Core Remaining (%) 100 | 100 . . . Volleys Fired 127 | 21 84 8 14 Largest 2 | 2 2 2 2 Hottest 116 | 70 112 112 116 Shots Fired 253 | 42 167 16 28 Gun 241 | 42 167 16 16 Cannon 12 | . . . 12 Launcher . | . . . . Special . | . . . . Kinetic 56 | 21 35 . . Thermal 197 | 21 132 16 28 Explosive . | . . . . Electromagnetic . | . . . . Robot Hit Streak 13 | 6 13 7 10 Robot Miss Streak 6 | 3 4 6 2 Penetration Max . | . . . . Secondary Targets 2 | . 2 . . Max Gunslinging Chain 1 | . 1 . . Shots Hit Robots 150 | 25 98 7 20 Core Hits 55 | 8 37 4 6 Critical Kills . | . . . . Critical Parts Destroyed 1 | 1 . . . Critical Strikes 11 | 3 7 1 . Burn 10 | 2 7 1 . Destroy 1 | 1 . . . Melee Attacks . | . . . . Impact . | . . . . Slashing . | . . . . Piercing . | . . . . Sneak Attacks . | . . . . Combat Hostiles . | . . . . Follow-up Attacks . | . . . . Damage Inflicted 1917 | 281 1295 102 239 Guns 1738 | 280 1258 102 98 Cannons 141 | . . . 141 Explosions . | . . . . Melee . | . . . . Ramming 38 | 1 37 . . Kinetic 292 | 92 200 . . Thermal 1587 | 188 1058 102 239 Explosive . | . . . . Electromagnetic . | . . . . Impact . | . . . . Slashing . | . . . . Piercing . | . . . . Highest Corruption . | . . . . Average Corruption . | . . . . Corruption Purged . | . . . . Corruption Blocked . | . . . . Overload Shots . | . . . . Overflow Damage . | . . . . Projectiles . | . . . . Explosions . | . . . . Melee . | . . . . Knockbacks 1 | . 1 . . Impact 1 | . 1 . . Kinetic . | . . . . Secondary . | . . . . Self-Inflicted Damage . | . . . . Shots . | . . . . Rammed 9 | 1 8 . . Targets Rammed 9 | 1 8 . . Kicked . | . . . . Crushed . | . . . . Highest Temperature 230 | 230 162 204 9 Average Temperature 58 | 91 49 72 6 Received Heat Transfer 435 | . 276 . 159 Effects 1 | 1 . . . Energy Bleed 1 | 1 . . . Siege Activations . | . . . . Martial Activations . | . . . . Shielding Activations . | . . . . Robots Disrupted . | . . . . Combat Hostiles . | . . . . Robots Corrupted . | . . . . Combat Hostiles . | . . . . Parts Fried . | . . . . Impact Corruptions . | . . . . Robots Melted . | . . . . Combat Hostiles . | . . . . Parts Melted 11 | 2 6 1 2 Heat Transferred 4921 | 703 3330 333 555 Parts Sabotaged . | . . . . Parts Stolen . | . . . . Parts Stripped . | . . . . Power Chain Reactions . | . . . . Alert | -11 -10 -10 -10 ------- Run | Yrd Mat Min Sub Maximum Alert Level . | . . . . Low Security (%) 100 | 100 100 100 . Level 1 . | . . . . Level 2 . | . . . . Level 3 . | . . . . Level 4 . | . . . . Level 5 . | . . . . High Security . | . . . . Max Security . | . . . . Peak Influence 150 | 10 150 61 . Initial 43 | . 3 43 . Average 55 | 1 80 15 . Influence Increases 662 | 20 552 90 . Destroy 0b10 Robot/C 420 | . 360 60 . Destroy 0b10 Robot/NC 40 | 20 15 5 . Destroy Leader 64 | . 54 10 . Successful Hack 29 | . 29 . . Select Force Hacks 60 | . 60 . . Destroy Structure 4 | . 4 . . Lose Combat Pursuer 45 | . 30 15 . Influence Decreases 662 | 15 445 189 13 Entered New Map 79 | . 2 69 8 Time Decay 573 | 15 433 120 5 Lost Part 10 | . 10 . . Squads Dispatched 5 | . 5 . . Investigation 3 | . 3 . . Extermination . | . . . . Reinforcement 2 | . 2 . . Assault . | . . . . Garrison . | . . . . Intercept . | . . . . Searches Triggered . | . . . . Construction Impeded . | . . . . Haulers Reinforced . | . . . . Active Scanning Responses . | . . . . Cargo Convoy Interrupts . | . . . . Stealth | -11 -10 -10 -10 --------- Run | Yrd Mat Min Sub Distress Signals 2 | . 2 . . Communications Jammed . | . . . . Distress Signals . | . . . . Times Spotted 46 | . 38 4 4 Peak Tracking Total 6 | . 6 3 2 Tactical Retreats 3 | . 2 1 . Traps | -11 -10 -10 -10 ------- Run | Yrd Mat Min Sub Traps Triggered . | . . . . Indirectly . | . . . . Trap Hack Attempts . | . . . . Triggered . | . . . . Disarmed . | . . . . Reprogrammed . | . . . . Reused . | . . . . Traps Extracted . | . . . . Installed . | . . . . Triggered . | . . . . Machines | -11 -10 -10 -10 ---------- Run | Yrd Mat Min Sub Machines Disabled . | . . . . Max in Single Turn . | . . . . Machines Repaired . | . . . . Machines Dismantled . | . . . . Machines Sabotaged . | . . . . Overloaded Fab Kills . | . . . . Hacking | -11 -10 -10 -10 --------- Run | Yrd Mat Min Sub Machines Accessed 9 | . 9 . . Terminals 7 | . 7 . . Fabricators . | . . . . Repair Stations . | . . . . Recycling Units 2 | . 2 . . Scanalyzers . | . . . . Garrison Access . | . . . . Total Hacks 19 | . 19 . . Successful 6 | . 6 . . Failed 13 | . 13 . . Catastrophic . | . . . . Database Lockouts . | . . . . Manual 14 | . 14 . . Terminals 17 | . 17 . . Fabricators . | . . . . Repair Stations . | . . . . Recycling Units 2 | . 2 . . Scanalyzers . | . . . . Garrison Access . | . . . . Terminal Hacks 3 | . 3 . . Prototype ID Bank 1 | . 1 . . Terminal Index 1 | . 1 . . Locate Traps 1 | . 1 . . Fabricator Hacks . | . . . . Repair Station Hacks . | . . . . Recycling Unit Hacks . | . . . . Scanalyzer . | . . . . Garrison Access Hacks . | . . . . Unauthorized Hacks 3 | . 3 . . Terminals 1 | . 1 . . Botnet 1 | . 1 . . Fabricators . | . . . . Repair Stations . | . . . . Recycling Units 2 | . 2 . . Tunnel 2 | . 2 . . Scanalyzers . | . . . . Garrison Access . | . . . . Data Cores Recovered . | . . . . Used . | . . . . Hacking Detections 7 | . 7 . . Full Trace Events 1 | . 1 . . Feedback Events . | . . . . Feedback Blocked . | . . . . Robot Schematics Acquired . | . . . . Robots Built . | . . . . Authchips . | . . . . Time . | . . . . Total Robot Build Rating . | . . . . Part Schematics Acquired . | . . . . Parts Built . | . . . . Authchips . | . . . . Time . | . . . . Total Part Build Rating . | . . . . Part Studies Acquired . | . . . . Parts Repaired . | . . . . Time . | . . . . Parts Recycled . | . . . . Recycled Matter . | . . . . Retrieved Matter . | . . . . Retrieved Components . | . . . . Parts Scanalyzed . | . . . . Part Schematics Acquired . | . . . . Parts Damaged . | . . . . Bothacking | -11 -10 -10 -10 ------------ Run | Yrd Mat Min Sub Used RIF Installer . | . . . . Robots Hacked . | . . . . Non-combat . | . . . . Combat . | . . . . Robot Hacks Applied . | . . . . Relay Couplers Released . | . . . . Fabnet Peak Effective % . | . . . . Robots Rewired . | . . . . Allies Hacked . | . . . . Hacks Repelled . | . . . . Allies | -11 -10 -10 -10 -------- Run | Yrd Mat Min Sub Total Allies . | . . . . Largest Group . | . . . . Highest-Rated Group . | . . . . Highest-Rated Ally . | . . . . Total Orders . | . . . . Ally Attacks . | . . . . Total Damage . | . . . . Kills . | . . . . Allies Corrupted . | . . . . Allies Melted . | . . . . Intel | -11 -10 -10 -10 ------- Run | Yrd Mat Min Sub Active Infowar (turns) 2065 | 74 614 618 759 Seismic 2065 | 74 614 618 759 Robot Analysis Total . | . . . . Derelict Logs Recovered 2 | . . 1 1 Drone Launches . | . . . . Drone Recoveries . | . . . . Exploration | -11 -10 -10 -10 ------------- Run | Yrd Mat Min Sub Turns Passed 3106 | 193 1390 618 905 Spaces Moved 1482 | 78 630 350 424 Core 6 | 6 . . . Treads 549 | 72 477 . . Legs 328 | . . . 328 Wheels 599 | . 153 350 96 Hover . | . . . . Flight . | . . . . Fastest Speed 50 | 50 125 155 140 Average Speed 169 | 151 159 155 199 Slowest Speed 280 | 160 240 155 280 Overloaded Moves . | . . . . Propulsion Burnouts . | . . . . Robots Hopped . | . . . . Potential Cave-ins . | . . . . Cave-ins Triggered . | . . . . Exploration Rate (%) 45 | 6 91 56 28 Regions Visited 3 Branch Regions 2 Pre-discovered Areas 3 | . 2 . 1 Known Exits Taken . | . . . . Unknown Exits Taken 3 | 1 1 1 . Scrap Searched 3 | . . 3 . Spaces Dug . | . . . . Terrain Destroyed . | . . . . Melee . | . . . . Projectile . | . . . . AOE . | . . . . Terrain Rammed . | . . . . Walls Destroyed . | . . . . Machines Disabled . | . . . . Actions | -11 -10 -10 -10 --------- Run | Yrd Mat Min Sub Total 1826 | 110 847 410 459 Wait 146 | 1 94 50 1 Move 1479 | 77 629 349 424 Hop . | . . . . Pick Up 24 | 1 13 3 7 Fast Attach 9 | 7 1 . 1 Attach 4 | . . . 4 Detach . | . . . . Swap 19 | 2 13 . 4 Drop 9 | . 5 . 4 Fire 127 | 21 84 8 14 Melee . | . . . . Ram . | . . . . Kick . | . . . . Crush 9 | 1 8 . . Escape Stasis . | . . . . Rewire . | . . . . Trap . | . . . . Miscellaneous . | . . . . Route ------- -11/Scrapyard -10/Materials (discovered 5 exits: *Mat x3 / [*Min x2]) -10/Mines (discovered 2 exits: *Mat / [*Sub]) -10/Subcaves History --------- Turn | Location | Event 5 | -11/Scrapyard | Discovered new exit (range 15) 194 | -11/Scrapyard | Entered Materials 300 | -10/Materials | Build established: Mutant 322 | -10/Materials | Discovered new exit (range 11) 527 | -10/Materials | Discovered new exit (range 10) 812 | -10/Materials | Discovered new exit (range 13) 894 | -10/Materials | Derelicts attacked the area 1139 | -10/Materials | Discovered new exit (range 7) 1394 | -10/Materials | Discovered new exit (range 16) 1584 | -10/Materials | Entered Mines 1713 | -10/Mines | Found a damaged Exp. Sensor Array with a note attached 1716 | -10/Mines | Found Prototype Device 1751 | -10/Mines | Identified exit to Materials 2050 | -10/Mines | Discovered new exit (range 9) 2202 | -10/Mines | Entered Subcaves 2207 | -10/Subcaves | Learned Materials emergency access door positions 2309 | -10/Subcaves | Learned location of Zion (-7) 2309 | -10/Subcaves | Met a Zionite searching for "candidates" 2310 | -10/Subcaves | Shifting Twisted Machinery released Mak. Light Armor Plating 2328 | -10/Subcaves | Shifting Twisted Machinery released Battle Rifle 2356 | -10/Subcaves | Core integrity fell below 50% 2388 | -10/Subcaves | Core integrity fell below 20% 2398 | -10/Subcaves | Lost 4 parts (1p1n2w) 2730 | -10/Subcaves | Build established: Scavenger-Mutant 3102 | -10/Subcaves | Disturbed a concealed Subdweller 3107 | -10/Subcaves | Destroyed by QX-OTD(R) with Subdweller Beam Cannon Last Messages --------------- 02438_ Acquired 6 matter. 02461_ Subatomizers dissect the Heat Sink, destroying it. 02538_ Dropped Med. Armor Plating. 02539_ Acquired Sub. Shrapnel Launcher. 02561_ Acquired 5 matter. 02565_ Acquired 14 matter. 02603_ Acquired 5 matter. 02750_ O4-8ON(O) collects matter. 02756_ O4-8ON(O) puts together Sub. Laser. 02763_ O4-8ON(O) collects matter. 02847_ Dropped Sml. Laser. 02847_ Acquired Sml. Laser. 02957_ Dropped Sml. Laser. 02958_ Acquired Mak. Hammer. 03037_ ZH-1GH(R): "SUBMAD!" 03043_ ZH-1GH(R) destroyed. 03047_ Subatomizers dissect the Sub. Power Source. 03052_ Acquired 10 matter. 03058_ Subatomizers dissect the Sub. Power Source. 03102_ QX-OTD(R) angrily emerges from the Twisted Machinery. Map ----- +----------------------------------------------------+ | | | | | | | ?????????????????????????????????????????????????? | | ?????????????????????????????????????????????????? | | ?????????????????????????????????????????????????? | | ?????????????????????????????????????????????????? | | ?????????????????????????????????????????????????? | | ?????????????????????????????????????????????????? | | ?????????????????????????????????????????????????? | | ?????????????????????????????????????????????????? | | ?????????????????????????????????????????????????? | | ?????????????????????????????????????????????????? | | ?????????????????????????????????????????????????? | | ?????????????????????????????????????????????????? | | ??????????????????????##?????????????????????????? | | ?????????????????????? #????????????????????????? | | ??????????????????????$& ????????????????????????? | | ???????????????????????